fUSD/lending_fUSD_20250305
["ID","MTS","AMOUNT","RATE_DAILY","PERIOD"]
[355507772,1741211446686,-500.0,0.00011499,2]
[355507773,1741211446696,-500.0,0.00011499,2]
[355507774,1741211446705,-500.0,0.00011499,2]
[355507775,1741211446715,-500.0,0.00011499,2]
[355507777,1741211446724,-500.0,0.00011499,2]
[355507779,1741211446734,-500.0,0.00011499,2]
[355507781,1741211446743,-500.0,0.00011499,2]
[355507783,1741211446753,-500.0,0.00011499,2]
[355507785,1741211446763,-500.0,0.00011499,2]
[355507787,1741211446773,-500.0,0.00011499,2]
[355507789,1741211446782,-500.0,0.00011499,2]
[355507791,1741211446791,-500.0,0.00011499,2]
[355507793,1741211446800,-500.0,0.00011499,2]
[355507794,1741211446810,-500.0,0.00011499,2]
[355507795,1741211446819,-500.0,0.00011499,2]
[355507796,1741211446830,-500.0,0.00011499,2]
[355507797,1741211446840,-500.0,0.00011499,2]
[355507798,1741211446849,-500.0,0.00011499,2]
[355507799,1741211446861,-500.0,0.00011499,2]
[355507800,1741211446872,-500.0,0.00011499,2]
[355507801,1741211446881,-500.0,0.00011499,2]
[355507802,1741211446891,-500.0,0.00011499,2]
[355507803,1741211446903,-500.0,0.00011499,2]
[355507804,1741211446913,-500.0,0.00011499,2]
[355507805,1741211446924,-500.0,0.00011499,2]
[355507806,1741211446935,-500.0,0.00011499,2]
[355507807,1741211446945,-500.0,0.00011499,2]
[355507808,1741211446955,-500.0,0.00011499,2]
[355507809,1741211446963,-1527.89,0.00011499,2]
[355507810,1741211446973,-566.63,0.00011499,2]
[355507811,1741211446982,-500.0,0.00011499,2]
[355507812,1741211446992,-573.02,0.00011499,2]
[355507813,1741211447002,-500.0,0.00011499,2]
[355507814,1741211447012,-725.87,0.00011499,2]
[355507815,1741211447022,-500.0,0.00011499,2]
[355507816,1741211447033,-500.0,0.00011499,2]
[355507817,1741211447042,-820.63,0.00011499,2]
[355507818,1741211447052,-500.0,0.00011499,2]
[355507819,1741211447062,-548.37,0.00011499,2]
[355507820,1741211447071,-500.0,0.00011499,2]
[355507821,1741211447080,-684.23,0.00011499,2]
[355507822,1741211447089,-500.0,0.00011499,2]
[355507823,1741211447099,-500.0,0.00011499,2]
[355507824,1741211447108,-500.0,0.00011499,2]
[355507825,1741211447117,-559.43,0.00011499,2]
[355507826,1741211447126,-500.0,0.00011499,2]
[355507827,1741211447135,-500.0,0.00011499,2]
[355507828,1741211447145,-500.0,0.00011499,2]
[355507829,1741211447154,-1151.28,0.00011499,2]
[355507830,1741211447164,-500.0,0.00011499,2]
[355507831,1741211447173,-548.36,0.00011499,2]
[355507832,1741211447182,-500.0,0.00011499,2]
[355507833,1741211447192,-500.0,0.00011499,2]
[355507834,1741211447201,-500.0,0.00011499,2]
[355507835,1741211447210,-500.0,0.00011499,2]
[355507836,1741211447220,-500.0,0.00011499,2]
[355507837,1741211447229,-500.0,0.00011499,2]
[355507838,1741211447239,-3200.53,0.00011499,2]
[355507839,1741211447248,-536.5,0.00011499,2]
[355507840,1741211447259,-500.0,0.00011499,2]
[355507841,1741211447271,-500.0,0.00011499,2]
[355507842,1741211447281,-500.0,0.00011499,2]
[355507843,1741211447290,-550.84,0.00011499,2]
[355507844,1741211447299,-500.0,0.00011499,2]
[355507845,1741211447309,-905.33,0.00011499,2]
[355507846,1741211447318,-546.37,0.00011499,2]
[355507847,1741211447327,-500.0,0.00011499,2]
[355507848,1741211447337,-624.21,0.00011499,2]
[355507849,1741211447346,-606.83,0.00011499,2]
[355507850,1741211447355,-500.0,0.00011499,2]
[355507851,1741211447365,-500.0,0.00011499,2]
[355507852,1741211447375,-500.0,0.00011499,2]
[355507853,1741211447384,-500.0,0.00011499,2]
[355507854,1741211447394,-500.0,0.00011499,2]
[355507855,1741211447403,-500.0,0.00011499,2]
[355507856,1741211447413,-649.78,0.00011499,2]
[355507857,1741211447423,-500.0,0.00011499,2]
[355507858,1741211447432,-500.0,0.00011499,2]
[355507859,1741211447441,-550.75,0.00011499,2]
[355507860,1741211447450,-500.0,0.00011499,2]
[355507861,1741211447460,-500.0,0.00011499,2]
[355507862,1741211447471,-500.0,0.00011499,2]
[355507863,1741211447481,-500.0,0.00011499,2]
[355507864,1741211447492,-500.0,0.00011499,2]
[355507865,1741211447501,-526.18,0.00011499,2]
[355507866,1741211447510,-500.0,0.00011499,2]
[355507867,1741211447519,-500.0,0.00011499,2]
[355507868,1741211447530,-562.94,0.00011499,2]
[355507869,1741211447540,-500.0,0.00011499,2]
[355507870,1741211447549,-500.0,0.00011499,2]
[355507871,1741211447559,-542.21,0.00011499,2]
[355507872,1741211447568,-500.0,0.00011499,2]
[355507873,1741211447579,-500.0,0.00011499,2]
[355507874,1741211447588,-500.0,0.00011499,2]
[355507875,1741211447597,-681.52,0.00011499,2]
[355507876,1741211447607,-500.0,0.00011499,2]
[355507877,1741211447615,-500.0,0.00011499,2]
[355507878,1741211447625,-500.0,0.00011499,2]
[355507879,1741211447634,-801.7,0.00011499,2]
[355507880,1741211447643,-500.0,0.00011499,2]
[355507881,1741211447652,-511.53,0.00011499,2]
[355507882,1741211447662,-1449.28,0.00011499,2]
[355507883,1741211447671,-500.0,0.00011499,2]
[355507884,1741211447680,-500.0,0.00011499,2]
[355507885,1741211447690,-500.0,0.00011499,2]
[355507886,1741211447698,-703.49,0.00011499,2]
[355507887,1741211447708,-500.0,0.00011499,2]
[355507888,1741211447717,-8115.59,0.00011499,2]
[355507889,1741211447726,-500.0,0.00011499,2]
[355507890,1741211447735,-500.0,0.00011499,2]
[355507891,1741211447745,-500.0,0.00011499,2]
[355507892,1741211447754,-500.0,0.00011499,2]
[355507893,1741211447764,-500.0,0.00011499,2]
[355507894,1741211447773,-635.09,0.00011499,2]
[355507895,1741211447783,-500.0,0.00011499,2]
[355507896,1741211447792,-500.0,0.00011499,2]
[355507897,1741211447801,-500.0,0.00011499,2]
[355507898,1741211447810,-1200.12,0.00011499,2]
[355507899,1741211447820,-500.0,0.00011499,2]
[355507900,1741211447829,-500.0,0.00011499,2]
[355507901,1741211447844,-500.0,0.00011499,2]
[355507902,1741211447853,-9109.12,0.00011499,2]
[355507903,1741211447863,-10740.63644246,0.00011499,2]
[355507904,1741211447872,-364.1532919,0.00011499,3]
[355507905,1741211447882,-24066.58475478,0.000115,2]
[355507906,1741211448376,-10494.75516,0.000115,2]
[355507908,1741211738261,619.99,9.061e-05,2]
[355507918,1741212632390,-1000.0,0.00010461,2]
[355507919,1741212632401,-250.0,0.00010461,2]
[355507920,1741212632410,-258.28505914,0.00010488,2]
[355507921,1741212632422,-10.31494086,0.00010488,2]
[355507922,1741212632431,-644.86,0.00010663,2]
[355507928,1741212632746,-183.01,0.00010973,2]
[355507930,1741212632756,-550.0,0.00011,2]
[355507932,1741212632765,-300.0,0.00011032,2]
[355507934,1741212632775,-7220.50391597,0.00011033,2]
[355507936,1741212632785,-168.99,0.00011111,2]
[355507938,1741212632794,-619.99,0.00011325,2]
[355507940,1741212632804,-3175.33015552,0.00011398,2]
[355507942,1741212632814,-3175.33015552,0.00011398,2]
[355507944,1741212632823,-3175.33015552,0.00011398,2]
[355507946,1741212632832,-433.675,0.00011399,2]
[355507948,1741212632841,-159.62185288,0.000114,2]
[355507950,1741212632851,-1207.30827877,0.000114,10]
[355507952,1741212632861,-81098.58107823,0.000114,2]
[355507954,1741212632871,-163.43135064,0.000114,2]
[355507956,1741212632880,-650.27,0.000114,2]
[355507958,1741212632889,-344.68,0.000114,2]
[355507960,1741212632899,-403.42689372,0.000114,2]
[355507962,1741212632908,-3369.45294311,0.000114,2]
[355507964,1741212632918,-500.0,0.00011473,2]
[355507966,1741212632927,-170.77662447,0.00011473,2]
[355507968,1741212632936,-278.18064399,0.00011473,2]
[355507970,1741212632946,-160.97692136,0.00011473,2]
[355507972,1741212632955,-205.65488225,0.00011473,2]
[355507974,1741212632967,-2000.0,0.0001149,3]
[355507976,1741212632976,-163.08395353,0.0001149,2]
[355507978,1741212632986,-539.27595533,0.00011497,2]
[355507980,1741212632995,-500.0,0.00011497,2]
[355507982,1741212633005,-250.8771681,0.00011497,2]
[355507983,1741212633014,-500.0,0.00011498,2]
[355507984,1741212633023,-500.0,0.00011498,2]
[355507985,1741212633033,-500.0,0.00011498,2]
[355507986,1741212633043,-500.0,0.00011498,2]
[355507987,1741212633053,-500.0,0.00011498,2]
[355507988,1741212633063,-500.0,0.00011498,2]
[355507989,1741212633073,-500.0,0.00011498,2]
[355507990,1741212633083,-500.0,0.00011498,2]
[355507991,1741212633092,-500.0,0.00011498,2]
[355507992,1741212633102,-500.0,0.00011498,2]
[355507993,1741212633112,-500.0,0.00011498,2]
[355507994,1741212633122,-500.0,0.00011498,2]
[355507995,1741212633131,-500.0,0.00011498,2]
[355507996,1741212633141,-500.0,0.00011498,2]
[355507997,1741212633150,-500.0,0.00011498,2]
[355507998,1741212633159,-500.0,0.00011498,2]
[355507999,1741212633170,-500.0,0.00011498,2]
[355508000,1741212633180,-500.0,0.00011498,2]
[355508001,1741212633192,-500.0,0.00011498,2]
[355508002,1741212633206,-500.0,0.00011498,2]
[355508003,1741212633216,-500.0,0.00011498,2]
[355508004,1741212633226,-500.0,0.00011498,2]
[355508005,1741212633237,-500.0,0.00011498,2]
[355508006,1741212633247,-500.0,0.00011498,2]
[355508007,1741212633257,-500.0,0.00011498,2]
[355508008,1741212633267,-500.0,0.00011498,2]
[355508009,1741212633278,-500.0,0.00011498,2]
[355508010,1741212633288,-500.0,0.00011498,2]
[355508011,1741212633298,-500.0,0.00011498,2]
[355508012,1741212633309,-500.0,0.00011498,2]
[355508013,1741212633318,-500.0,0.00011498,2]
[355508014,1741212633328,-500.0,0.00011498,2]
[355508015,1741212633338,-500.0,0.00011498,2]
[355508016,1741212633347,-500.0,0.00011498,2]
[355508017,1741212633356,-500.0,0.00011498,2]
[355508018,1741212633366,-500.0,0.00011498,2]
[355508019,1741212633376,-500.0,0.00011498,2]
[355508020,1741212633387,-500.0,0.00011498,2]
[355508021,1741212633396,-500.0,0.00011498,2]
[355508022,1741212633406,-500.0,0.00011498,2]
[355508023,1741212633416,-500.0,0.00011498,2]
[355508024,1741212633426,-500.0,0.00011498,2]
[355508025,1741212633436,-500.0,0.00011498,2]
[355508026,1741212633446,-500.0,0.00011498,2]
[355508027,1741212633456,-500.0,0.00011498,2]
[355508028,1741212633467,-500.0,0.00011498,2]
[355508029,1741212633477,-500.0,0.00011498,2]
[355508030,1741212633487,-500.0,0.00011498,2]
[355508031,1741212633496,-500.0,0.00011498,2]
[355508032,1741212633506,-500.0,0.00011498,2]
[355508033,1741212633516,-500.0,0.00011498,2]
[355508034,1741212633525,-500.0,0.00011498,2]
[355508035,1741212633536,-500.0,0.00011498,2]
[355508036,1741212633547,-500.0,0.00011498,2]
[355508037,1741212633556,-529.92,0.00011498,2]
[355508038,1741212633566,-500.0,0.00011498,2]
[355508039,1741212633576,-500.0,0.00011498,2]
[355508040,1741212633586,-500.0,0.00011498,2]
[355508041,1741212633596,-500.0,0.00011498,2]
[355508042,1741212633606,-500.0,0.00011498,2]
[355508043,1741212633616,-500.0,0.00011498,2]
[355508044,1741212633625,-418.7001573,0.00011498,2]
[355508045,1741212633635,-500.0,0.00011498,2]
[355508046,1741212633645,-500.0,0.00011498,2]
[355508047,1741212633658,-500.0,0.00011498,2]
[355508048,1741212633669,-500.0,0.00011498,2]
[355508049,1741212633679,-500.0,0.00011498,2]
[355508050,1741212633688,-500.0,0.00011498,2]
[355508051,1741212633698,-500.0,0.00011498,2]
[355508052,1741212633708,-500.0,0.00011498,2]
[355508053,1741212633718,-500.0,0.00011498,2]
[355508054,1741212633727,-500.0,0.00011498,2]
[355508055,1741212633737,-500.0,0.00011498,2]
[355508056,1741212633747,-500.0,0.00011498,2]
[355508057,1741212633757,-500.0,0.00011498,2]
[355508058,1741212633767,-500.0,0.00011498,2]
[355508059,1741212633776,-500.0,0.00011498,2]
[355508060,1741212633786,-500.0,0.00011498,2]
[355508061,1741212633796,-566.63,0.00011498,2]
[355508062,1741212633807,-500.0,0.00011498,2]
[355508063,1741212633816,-500.0,0.00011498,2]
[355508064,1741212633826,-500.0,0.00011498,2]
[355508065,1741212633836,-500.0,0.00011498,2]
[355508066,1741212633846,-500.0,0.00011498,2]
[355508067,1741212633856,-500.0,0.00011498,2]
[355508068,1741212633866,-500.0,0.00011498,2]
[355508069,1741212633881,-500.0,0.00011498,2]
[355508070,1741212633891,-500.0,0.00011498,2]
[355508071,1741212633901,-500.0,0.00011498,2]
[355508072,1741212633911,-2733.06,0.00011498,2]
[355508073,1741212633921,-500.0,0.00011498,2]
[355508074,1741212633931,-500.0,0.00011498,2]
[355508075,1741212633941,-624.21,0.00011498,2]
[355508076,1741212633951,-712.31,0.00011498,2]
[355508077,1741212633961,-722.59,0.00011498,2]
[355508078,1741212633971,-500.0,0.00011498,2]
[355508079,1741212633982,-577.4,0.00011498,2]
[355508080,1741212633992,-1023.46,0.00011498,2]
[355508081,1741212634002,-649.78,0.00011498,2]
[355508082,1741212634011,-665.243751,0.00011498,2]
[355508083,1741212634021,-808.53,0.00011498,2]
[355508084,1741212634031,-500.0,0.00011498,2]
[355508085,1741212634042,-1757.34,0.00011498,2]
[355508086,1741212634052,-500.0,0.00011498,2]
[355508087,1741212634061,-506.44,0.00011498,2]
[355508088,1741212634071,-500.0,0.00011498,2]
[355508089,1741212634080,-1521.87,0.00011498,2]
[355508090,1741212634090,-562.94,0.00011498,2]
[355508091,1741212634100,-540.23,0.00011498,2]
[355508092,1741212634110,-570.22,0.00011498,2]
[355508093,1741212634119,-500.0,0.00011498,2]
[355508094,1741212634129,-603.45,0.00011498,2]
[355508095,1741212634139,-500.0,0.00011498,2]
[355508096,1741212634148,-541.062727,0.00011498,2]
[355508097,1741212634158,-500.0,0.00011498,2]
[355508098,1741212634167,-570.44,0.00011498,2]
[355508099,1741212634178,-500.0,0.00011498,2]
[355508100,1741212634188,-676.41,0.00011498,2]
[355508101,1741212634200,-698.84,0.00011498,2]
[355508102,1741212634211,-500.0,0.00011498,2]
[355508103,1741212634221,-500.0,0.00011498,2]
[355508104,1741212634231,-564.41,0.00011498,2]
[355508105,1741212634241,-500.0,0.00011498,2]
[355508106,1741212634251,-1040.75,0.00011498,2]
[355508107,1741212634261,-500.0,0.00011498,2]
[355508108,1741212634272,-500.0,0.00011498,2]
[355508109,1741212634282,-2249.32,0.00011498,2]
[355508110,1741212634291,-753.91,0.00011498,2]
[355508111,1741212634300,-500.0,0.00011498,2]
[355508112,1741212634311,-711.88,0.00011498,2]
[355508113,1741212634320,-500.0,0.00011498,2]
[355508114,1741212634330,-961.44,0.00011498,2]
[355508115,1741212634340,-500.0,0.00011498,2]
[355508116,1741212634350,-642.98,0.00011498,2]
[355508117,1741212634360,-688.82,0.00011498,2]
[355508118,1741212634371,-4052.01,0.00011498,2]
[355508119,1741212634381,-500.0,0.00011498,2]
[355508120,1741212634391,-500.0,0.00011498,2]
[355508121,1741212634401,-500.0,0.00011498,2]
[355508122,1741212634411,-1012.77,0.00011498,2]
[355508123,1741212634422,-1995.88,0.00011498,2]
[355508124,1741212634431,-669.29,0.00011498,2]
[355508125,1741212634441,-500.0,0.00011498,2]
[355508126,1741212634451,-673.48,0.00011498,2]
[355508127,1741212634461,-661.91,0.00011498,2]
[355508128,1741212634471,-535.14,0.00011498,2]
[355508129,1741212634481,-500.0,0.00011498,2]
[355508130,1741212634491,-500.0,0.00011498,2]
[355508131,1741212634502,-3760.11,0.00011498,2]
[355508132,1741212634513,-501.46,0.00011498,2]
[355508133,1741212634523,-533.77,0.00011498,2]
[355508134,1741212634532,-552.18,0.00011498,2]
[355508135,1741212634542,-500.0,0.00011498,2]
[355508136,1741212634551,-547.16,0.00011498,2]
[355508137,1741212634561,-740.46196688,0.00011499,3]
[355508138,1741212634571,-151.0,0.00011499,2]
[355508139,1741212634580,-500.0,0.00011499,2]
[355508140,1741212634590,-500.0,0.00011499,2]
[355508141,1741212634600,-500.0,0.00011499,2]
[355508142,1741212634610,-500.0,0.00011499,2]
[355508143,1741212634620,-500.0,0.00011499,2]
[355508144,1741212634630,-500.0,0.00011499,2]
[355508145,1741212634641,-500.0,0.00011499,2]
[355508146,1741212634651,-500.0,0.00011499,2]
[355508147,1741212634661,-500.0,0.00011499,2]
[355508148,1741212634671,-500.0,0.00011499,2]
[355508149,1741212634681,-151.0,0.00011499,2]
[355508150,1741212634691,-213.80185004,0.00011499,2]
[355508151,1741212634700,-407.2831633,0.00011499,2]
[355508152,1741212634711,-500.0,0.00011499,2]
[355508153,1741212634720,-500.0,0.00011499,2]
[355508154,1741212634733,-500.0,0.00011499,2]
[355508155,1741212634743,-500.0,0.00011499,2]
[355508156,1741212634752,-3724.9,0.00011499,2]
[355508157,1741212634761,-500.0,0.00011499,2]
[355508158,1741212634771,-151.0,0.00011499,2]
[355508159,1741212634781,-153.791644,0.00011499,2]
[355508160,1741212634790,-500.0,0.00011499,2]
[355508161,1741212634799,-500.0,0.00011499,2]
[355508162,1741212634809,-500.0,0.00011499,2]
[355508163,1741212634818,-500.0,0.00011499,2]
[355508164,1741212634828,-500.0,0.00011499,2]
[355508165,1741212634837,-500.0,0.00011499,2]
[355508166,1741212634847,-500.0,0.00011499,2]
[355508167,1741212634857,-217.09023668,0.00011499,2]
[355508168,1741212634867,-151.0,0.00011499,2]
[355508169,1741212634877,-151.0,0.00011499,2]
[355508170,1741212634887,-500.0,0.00011499,2]
[355508171,1741212634897,-500.0,0.00011499,2]
[355508172,1741212634907,-500.0,0.00011499,2]
[355508173,1741212634916,-500.0,0.00011499,2]
[355508174,1741212634926,-500.0,0.00011499,2]
[355508175,1741212634935,-500.0,0.00011499,2]
[355508176,1741212634946,-500.0,0.00011499,2]
[355508177,1741212634955,-164.79517299,0.00011499,2]
[355508178,1741212634965,-500.0,0.00011499,2]
[355508179,1741212634974,-500.0,0.00011499,2]
[355508180,1741212634984,-1000.0,0.00011499,2]
[355508181,1741212634994,-500.0,0.00011499,2]
[355508182,1741212635003,-500.0,0.00011499,2]
[355508183,1741212635013,-500.0,0.00011499,2]
[355508184,1741212635023,-500.0,0.00011499,2]
[355508185,1741212635032,-500.0,0.00011499,2]
[355508186,1741212635041,-500.0,0.00011499,2]
[355508187,1741212635051,-500.0,0.00011499,2]
[355508188,1741212635060,-500.0,0.00011499,2]
[355508189,1741212635070,-500.0,0.00011499,2]
[355508190,1741212635079,-1523.06,0.00011499,2]
[355508191,1741212635089,-500.0,0.00011499,2]
[355508192,1741212635099,-500.0,0.00011499,2]
[355508193,1741212635108,-1200.12,0.00011499,2]
[355508194,1741212635118,-500.0,0.00011499,2]
[355508195,1741212635127,-932.36,0.00011499,2]
[355508196,1741212635137,-500.0,0.00011499,2]
[355508197,1741212635147,-7590.93,0.00011499,2]
[355508198,1741212635157,-1539.97,0.00011499,2]
[355508199,1741212635167,-500.0,0.00011499,2]
[355508200,1741212635179,-500.0,0.00011499,2]
[355508201,1741212635192,-500.0,0.00011499,2]
[355508202,1741212635202,-500.0,0.00011499,2]
[355508203,1741212635211,-1028.28,0.00011499,2]
[355508204,1741212635221,-500.0,0.00011499,2]
[355508205,1741212635231,-725.87,0.00011499,2]
[355508206,1741212635241,-500.0,0.00011499,2]
[355508207,1741212635251,-500.0,0.00011499,2]
[355508208,1741212635264,-151.0,0.00011499,2]
[355508209,1741212635276,-151.0,0.00011499,2]
[355508210,1741212635286,-1527.89,0.00011499,2]
[355508211,1741212635296,-844.18,0.00011499,2]
[355508212,1741212635305,-500.0,0.00011499,2]
[355508213,1741212635315,-500.0,0.00011499,2]
[355508214,1741212635326,-573.02,0.00011499,2]
[355508215,1741212635337,-1910.22,0.00011499,2]
[355508216,1741212635346,-548.36,0.00011499,2]
[355508217,1741212635355,-500.0,0.00011499,2]
[355508218,1741212635363,-820.63,0.00011499,2]
[355508219,1741212635372,-1000.0,0.00011499,2]
[355508220,1741212635382,-1934.67,0.00011499,2]
[355508221,1741212635392,-684.23,0.00011499,2]
[355508222,1741212635402,-500.0,0.00011499,2]
[355508223,1741212635412,-500.0,0.00011499,2]
[355508224,1741212635421,-500.0,0.00011499,2]
[355508225,1741212635430,-559.43,0.00011499,2]
[355508226,1741212635440,-500.0,0.00011499,2]
[355508227,1741212635450,-536.5,0.00011499,2]
[355508228,1741212635459,-1372.03,0.00011499,2]
[355508229,1741212635470,-548.37,0.00011499,2]
[355508230,1741212635480,-500.0,0.00011499,2]
[355508231,1741212635489,-500.0,0.00011499,2]
[355508232,1741212635499,-500.0,0.00011499,2]
[355508233,1741212635509,-1151.28,0.00011499,2]
[355508234,1741212635518,-975.45,0.00011499,2]
[355508235,1741212635528,-500.0,0.00011499,2]
[355508236,1741212635538,-500.0,0.00011499,2]
[355508237,1741212635548,-151.0,0.00011499,2]
[355508238,1741212635558,-500.0,0.00011499,2]
[355508239,1741212635568,-500.0,0.00011499,2]
[355508240,1741212635578,-3200.53,0.00011499,2]
[355508241,1741212635588,-624.97,0.00011499,2]
[355508242,1741212635598,-500.0,0.00011499,2]
[355508243,1741212635607,-500.0,0.00011499,2]
[355508244,1741212635617,-500.0,0.00011499,2]
[355508245,1741212635627,-500.0,0.00011499,2]
[355508246,1741212635637,-905.33,0.00011499,2]
[355508247,1741212635646,-1452.48,0.00011499,2]
[355508248,1741212635657,-606.83,0.00011499,2]
[355508249,1741212635666,-550.84,0.00011499,2]
[355508250,1741212635676,-500.0,0.00011499,2]
[355508251,1741212635686,-546.37,0.00011499,2]
[355508252,1741212635696,-1369.76,0.00011499,2]
[355508253,1741212635706,-500.0,0.00011499,2]
[355508254,1741212635717,-500.0,0.00011499,2]
[355508255,1741212635727,-500.0,0.00011499,2]
[355508256,1741212635737,-550.75,0.00011499,2]
[355508257,1741212635747,-500.0,0.00011499,2]
[355508258,1741212635756,-500.0,0.00011499,2]
[355508259,1741212635766,-500.0,0.00011499,2]
[355508260,1741212635775,-500.0,0.00011499,2]
[355508261,1741212635786,-526.18,0.00011499,2]
[355508262,1741212635796,-500.0,0.00011499,2]
[355508263,1741212635808,-500.0,0.00011499,2]
[355508264,1741212635818,-500.0,0.00011499,2]
[355508265,1741212635827,-500.0,0.00011499,2]
[355508266,1741212635837,-542.21,0.00011499,2]
[355508267,1741212635846,-500.0,0.00011499,2]
[355508268,1741212635855,-500.0,0.00011499,2]
[355508269,1741212635865,-681.52,0.00011499,2]
[355508270,1741212635874,-500.0,0.00011499,2]
[355508271,1741212635884,-500.0,0.00011499,2]
[355508272,1741212635894,-801.7,0.00011499,2]
[355508273,1741212635903,-500.0,0.00011499,2]
[355508274,1741212635913,-1449.28,0.00011499,2]
[355508275,1741212635922,-500.0,0.00011499,2]
[355508276,1741212635932,-500.0,0.00011499,2]
[355508277,1741212635942,-500.0,0.00011499,2]
[355508278,1741212635951,-319.82840892,0.00011499,2]
[355508279,1741212635961,-1205.99,0.00011499,2]
[355508280,1741212635972,-511.53,0.00011499,2]
[355508281,1741212635982,-8115.59,0.00011499,2]
[355508282,1741212635991,-500.0,0.00011499,2]
[355508283,1741212636001,-500.0,0.00011499,2]
[355508284,1741212636011,-500.0,0.00011499,2]
[355508285,1741212636022,-635.09,0.00011499,2]
[355508286,1741212636032,-500.0,0.00011499,2]
[355508287,1741212636042,-500.0,0.00011499,2]
[355508288,1741212636051,-500.0,0.00011499,2]
[355508289,1741212636061,-300.0,0.00011499,2]
[355508290,1741212636071,-115986.34665338,0.000115,2]
[355508291,1741212638234,-2242.4,0.00011399,2]
[355508292,1741212638247,-932.93015552,0.00011399,2]
[355508293,1741212638258,-500.0,0.00011498,2]
[355508294,1741212638269,-1150.11,0.00011499,2]
[355508296,1741212638518,-12500.2934795,0.000115,2]
[355508297,1741212638533,-715.10526304,0.000115,2]
[355508298,1741212638642,-550.34850008,0.00011399,2]
[355508299,1741212640518,-2624.98165544,0.00011399,2]
[355508300,1741212640527,-1475.81,0.00011498,2]
[355508301,1741212640537,-689.41022689,0.00011498,2]
[355508302,1741212640711,-559.49997513,0.00011498,2]
[355508303,1741212640746,-210.68979798,0.00011498,2]
[355508304,1741212640755,-82.30090837,0.00011498,2]
[355508492,1741212644322,-3175.33015552,0.00011399,2]
[355508493,1741212644332,-417.69909163,0.00011498,2]
[355508494,1741212644341,-500.0,0.00011498,2]
[355508495,1741212644351,-500.0,0.00011498,2]
[355508496,1741212644361,-500.0,0.00011499,2]
[355508497,1741212644371,-147881.51683256,0.000115,2]
[355508498,1741212644384,-306.03670001,0.000115,2]
[355508499,1741212646375,-1131.36046438,0.000115,2]
[355508500,1741212646404,-553.90674923,0.000115,2]
[355508501,1741212646508,-708.91030567,0.000115,2]
[355508515,1741212818581,557.99,8.977e-05,2]
[355508540,1741213831620,-165.01,0.00010522,2]
[355508541,1741213831630,-107.79967872,0.00010573,2]
[355508542,1741213831642,-892.20032128,0.00010573,2]
[355508543,1741213831653,-250.0,0.00010682,2]
[355508544,1741213831662,-300.0,0.00010999,2]
[355508545,1741213831671,-5499.91586002,0.00011,2]
[355508546,1741213831680,-550.0,0.00011,2]
[355508547,1741213831690,-557.99,0.00011241,2]